[Event "*** Titled Tuesday Blitz"]
[Site "Chess.com"]
[Date "2019.04.02"]
[Round "2"]
[White "mlchen"]
[Black "amintabatabaei"]
[Result "1/2-1/2"]
[WhiteElo "2397"]
[BlackElo "2895"]
[TimeControl "180+2"]
[EndTime "14:26:32 PDT"]
[Termination "Game drawn by stalemate"]

1. e4 {[%clk 0:03:01.9]} 1... g6 {[%clk 0:02:59.2]} 2. d4 {[%clk 0:03:02.6]}
2... Bg7 {[%clk 0:03:01.1]} 3. Nc3 {[%clk 0:03:03.4]} 3... d6 {[%clk 0:03:02.7]}
4. f4 {[%clk 0:03:01.8]} 4... Nf6 {[%clk 0:03:03]} 5. Nf3 {[%clk 0:03:02.9]}
5... O-O {[%clk 0:02:56.4]} 6. Bd3 {[%clk 0:02:56.9]} 6... Nc6 {[%clk
0:02:53.5]} 7. O-O {[%clk 0:02:47.6]} 7... e5 {[%clk 0:02:52.7]} 8. d5 {[%clk
0:02:45.2]} 8... Nb4 {[%clk 0:02:41]} 9. fxe5 {[%clk 0:02:33.3]} 9... dxe5
{[%clk 0:02:42.9]} 10. Bg5 {[%clk 0:02:33]} 10... Qd6 {[%clk 0:02:36.1]} 11. Kh1
{[%clk 0:02:20.2]} 11... Nxd3 {[%clk 0:02:20.1]} 12. cxd3 {[%clk 0:02:12.9]}
12... c6 {[%clk 0:02:15.5]} 13. d4 {[%clk 0:02:08]} 13... Nd7 {[%clk 0:02:05.5]}
14. dxc6 {[%clk 0:02:04.4]} 14... bxc6 {[%clk 0:02:02.8]} 15. d5 {[%clk
0:02:01.1]} 15... Bb7 {[%clk 0:01:58.8]} 16. dxc6 {[%clk 0:01:38.6]} 16... Qxd1
{[%clk 0:02:00.7]} 17. Rfxd1 {[%clk 0:01:38.4]} 17... Bxc6 {[%clk 0:02:02.6]}
18. Rd6 {[%clk 0:01:39.2]} 18... Rfc8 {[%clk 0:02:01.2]} 19. Rad1 {[%clk
0:01:39.8]} 19... Nc5 {[%clk 0:01:59.5]} 20. Nd5 {[%clk 0:01:23]} 20... Bxd5
{[%clk 0:01:53]} 21. exd5 {[%clk 0:01:22.9]} 21... e4 {[%clk 0:01:53.8]} 22. Nd2
{[%clk 0:01:12.9]} 22... Bxb2 {[%clk 0:01:43.1]} 23. Rb1 {[%clk 0:01:08.1]}
23... Bc3 {[%clk 0:01:22.7]} 24. Kg1 {[%clk 0:00:55.3]} 24... Be5 {[%clk
0:00:57.8]} 25. Rc6 {[%clk 0:00:53.6]} 25... Rxc6 {[%clk 0:00:59.4]} 26. dxc6
{[%clk 0:00:55.1]} 26... Rc8 {[%clk 0:01:01.3]} 27. Rc1 {[%clk 0:00:48.1]} 27...
Bd4+ {[%clk 0:00:50.5]} 28. Kf1 {[%clk 0:00:44.8]} 28... f6 {[%clk 0:00:20.1]}
29. Bh6 {[%clk 0:00:41.8]} 29... g5 {[%clk 0:00:17.4]} 30. Rc4 {[%clk
0:00:36.3]} 30... Be3 {[%clk 0:00:11.6]} 31. Nxe4 {[%clk 0:00:37.2]} 31... Rxc6
{[%clk 0:00:06.4]} 32. Ke2 {[%clk 0:00:26.4]} 32... Bg1 {[%clk 0:00:07.6]} 33.
Kf1 {[%clk 0:00:26.8]} 33... Be3 {[%clk 0:00:08.7]} 34. Ke2 {[%clk 0:00:28.3]}
34... Bg1 {[%clk 0:00:10]} 35. Kf1 {[%clk 0:00:29.6]} 35... Bxh2 {[%clk
0:00:11.4]} 36. Rxc5 {[%clk 0:00:28.7]} 36... Rxc5 {[%clk 0:00:12.8]} 37. Nxc5
{[%clk 0:00:29.8]} 37... Kf7 {[%clk 0:00:14.4]} 38. Ne4 {[%clk 0:00:30.5]} 38...
Bf4 {[%clk 0:00:14.2]} 39. g3 {[%clk 0:00:31.2]} 39... Bc1 {[%clk 0:00:14.9]}
40. Ke2 {[%clk 0:00:32.3]} 40... a6 {[%clk 0:00:10.6]} 41. a4 {[%clk 0:00:32.3]}
41... Ba3 {[%clk 0:00:09.1]} 42. Nxg5+ {[%clk 0:00:31.8]} 42... Kg6 {[%clk
0:00:05.1]} 43. Nxh7 {[%clk 0:00:31.6]} 43... Kxh7 {[%clk 0:00:05.5]} 44. Bf4
{[%clk 0:00:31.5]} 44... Kg6 {[%clk 0:00:07.1]} 45. Kd3 {[%clk 0:00:31.8]} 45...
Kf5 {[%clk 0:00:08.1]} 46. Bc7 {[%clk 0:00:30.4]} 46... Kg4 {[%clk 0:00:08.8]}
47. Bf4 {[%clk 0:00:31]} 47... f5 {[%clk 0:00:09.8]} 48. Ke2 {[%clk 0:00:31.3]}
48... Bc5 {[%clk 0:00:10.8]} 49. Bc7 {[%clk 0:00:31.6]} 49... Bd4 {[%clk
0:00:11.7]} 50. Bf4 {[%clk 0:00:32.8]} 50... Bb6 {[%clk 0:00:12.6]} 51. Be5
{[%clk 0:00:33.7]} 51... Bc5 {[%clk 0:00:13.9]} 52. Bf4 {[%clk 0:00:35]} 52...
Bd4 {[%clk 0:00:15.3]} 53. Bd6 {[%clk 0:00:35.9]} 53... Ba7 {[%clk 0:00:15.4]}
54. Bf4 {[%clk 0:00:36.8]} 54... Bb6 {[%clk 0:00:16.9]} 55. Be5 {[%clk
0:00:37.9]} 55... Bd8 {[%clk 0:00:18]} 56. Bd6 {[%clk 0:00:37.8]} 56... Bf6
{[%clk 0:00:18.8]} 57. Bc7 {[%clk 0:00:38.3]} 57... Bd4 {[%clk 0:00:20]} 58. Bf4
{[%clk 0:00:38.7]} 58... Bg1 {[%clk 0:00:20.2]} 59. Bc7 {[%clk 0:00:39]} 59...
Bc5 {[%clk 0:00:20.9]} 60. Be5 {[%clk 0:00:39.2]} 60... Be7 {[%clk 0:00:22]} 61.
Bc7 {[%clk 0:00:39.8]} 61... Bg5 {[%clk 0:00:23.3]} 62. Be5 {[%clk 0:00:40.2]}
62... Bd8 {[%clk 0:00:24.5]} 63. Bd6 {[%clk 0:00:40.9]} 63... Bb6 {[%clk
0:00:25.6]} 64. Be5 {[%clk 0:00:41.7]} 64... Bc5 {[%clk 0:00:26.7]} 65. Bc7
{[%clk 0:00:42.4]} 65... Bd4 {[%clk 0:00:25.4]} 66. Bd6 {[%clk 0:00:43.4]} 66...
Bf6 {[%clk 0:00:26.6]} 67. Bc7 {[%clk 0:00:44.4]} 67... Be7 {[%clk 0:00:27.3]}
68. Be5 {[%clk 0:00:44.8]} 68... Bf8 {[%clk 0:00:23.1]} 69. Bc7 {[%clk
0:00:45.3]} 69... Bh6 {[%clk 0:00:21.6]} 70. Bd6 {[%clk 0:00:46]} 70... Bg7
{[%clk 0:00:22.7]} 71. Bc7 {[%clk 0:00:47]} 71... Bd4 {[%clk 0:00:19.9]} 72. Bd6
{[%clk 0:00:47.8]} 72... Bb2 {[%clk 0:00:21.2]} 73. Bc7 {[%clk 0:00:48.2]} 73...
Bc3 {[%clk 0:00:21.5]} 74. Bd6 {[%clk 0:00:49.2]} 74... Bd4 {[%clk 0:00:22.9]}
75. Bc7 {[%clk 0:00:49.9]} 75... Bb2 {[%clk 0:00:24.6]} 76. Bd6 {[%clk
0:00:50.9]} 76... Kg5 {[%clk 0:00:26.1]} 77. Kf3 {[%clk 0:00:50.3]} 77... Kf6
{[%clk 0:00:27.7]} 78. Bc7 {[%clk 0:00:50.4]} 78... Ke6 {[%clk 0:00:27.4]} 79.
Kf4 {[%clk 0:00:50.3]} 79... Bc1+ {[%clk 0:00:27.4]} 80. Kf3 {[%clk 0:00:51.1]}
80... Kd5 {[%clk 0:00:28.9]} 81. Bf4 {[%clk 0:00:47.3]} 81... Ba3 {[%clk
0:00:23]} 82. Bd2 {[%clk 0:00:44.6]} 82... Bd6 {[%clk 0:00:22.9]} 83. Bf4 {[%clk
0:00:41.3]} 83... Bf8 {[%clk 0:00:24]} 84. Bg5 {[%clk 0:00:41.3]} 84... Kc4
{[%clk 0:00:21.7]} 85. Kf4 {[%clk 0:00:41.7]} 85... Bd6+ {[%clk 0:00:22.9]} 86.
Kxf5 {[%clk 0:00:38.8]} 86... Bxg3 {[%clk 0:00:23.3]} 87. Bd8 {[%clk 0:00:37.9]}
87... Kb4 {[%clk 0:00:18.9]} 88. a5 {[%clk 0:00:38.8]} 88... Be1 {[%clk
0:00:17.9]} 89. Ke4 {[%clk 0:00:39.6]} 89... Kc4 {[%clk 0:00:19.1]} 90. Ke3
{[%clk 0:00:39.4]} 90... Bc3 {[%clk 0:00:19.7]} 91. Ke2 {[%clk 0:00:38.7]} 91...
Kb3 {[%clk 0:00:20.3]} 92. Kd1 {[%clk 0:00:39.3]} 92... Kb2 {[%clk 0:00:21.2]}
93. Bb6 {[%clk 0:00:40]} 93... Kb1 {[%clk 0:00:22.2]} 94. Bd8 {[%clk 0:00:40.9]}
94... Bb4 {[%clk 0:00:23.2]} 95. Bb6 {[%clk 0:00:41.7]} 95... Kb2 {[%clk
0:00:24.2]} 96. Bc7 {[%clk 0:00:42.4]} 96... Kb3 {[%clk 0:00:25.1]} 97. Kc1
{[%clk 0:00:43]} 97... Ka4 {[%clk 0:00:26.8]} 98. Kb1 {[%clk 0:00:43.3]} 98...
Kb5 {[%clk 0:00:28.4]} 99. Bd8 {[%clk 0:00:43.8]} 99... Kc6 {[%clk 0:00:30.1]}
100. Bb6 {[%clk 0:00:44.2]} 100... Bc5 {[%clk 0:00:28.5]} 101. Bxc5 {[%clk
0:00:44]} 101... Kxc5 {[%clk 0:00:30.4]} 102. Ka1 {[%clk 0:00:45.2]} 102... Kb4
{[%clk 0:00:32.3]} 103. Kb1 {[%clk 0:00:46.6]} 103... Kxa5 {[%clk 0:00:34.2]}
104. Ka1 {[%clk 0:00:48.1]} 104... Kb4 {[%clk 0:00:36.1]} 105. Kb1 {[%clk
0:00:49.8]} 105... a5 {[%clk 0:00:38]} 106. Ka1 {[%clk 0:00:51.1]} 106... a4
{[%clk 0:00:39.9]} 107. Kb1 {[%clk 0:00:53]} 107... a3 {[%clk 0:00:41.8]} 108.
Ka1 {[%clk 0:00:54.5]} 108... Kb3 {[%clk 0:00:43.7]} 109. Kb1 {[%clk 0:00:55.9]}
109... a2+ {[%clk 0:00:45.6]} 110. Ka1 {[%clk 0:00:57.3]} 110... Ka3 {[%clk
0:00:47.5]} 1/2-1/2

[Event "*** Titled Tuesday Blitz"]
[Site "Chess.com"]
[Date "2019.04.02"]
[Round "2"]
[White "Zarikovs1999"]
[Black "Koksal06"]
[Result "1-0"]
[WhiteElo "2458"]
[BlackElo "2199"]
[TimeControl "180+2"]
[EndTime "14:27:24 PDT"]
[Termination "Zarikovs1999 won by resignation"]

1. e4 {[%clk 0:02:55.8]} 1... e6 {[%clk 0:03:00.4]} 2. d4 {[%clk 0:02:56.9]}
2... d5 {[%clk 0:03:00.3]} 3. Bd3 {[%clk 0:02:58.3]} 3... Nf6 {[%clk 0:02:59.3]}
4. e5 {[%clk 0:02:58.1]} 4... Nfd7 {[%clk 0:03:00.9]} 5. c3 {[%clk 0:02:59.8]}
5... c5 {[%clk 0:03:01.5]} 6. Ne2 {[%clk 0:02:57.2]} 6... Nc6 {[%clk 0:03:02.6]}
7. Nd2 {[%clk 0:02:58.1]} 7... Be7 {[%clk 0:02:57.7]} 8. O-O {[%clk 0:02:56.2]}
8... O-O {[%clk 0:02:59.3]} 9. a3 {[%clk 0:02:56.5]} 9... a5 {[%clk 0:02:58.1]}
10. a4 {[%clk 0:02:50.5]} 10... cxd4 {[%clk 0:02:57]} 11. cxd4 {[%clk 0:02:50]}
11... Nb4 {[%clk 0:02:55.9]} 12. Bb1 {[%clk 0:02:47.4]} 12... b6 {[%clk
0:02:57.5]} 13. Nc3 {[%clk 0:02:47]} 13... Ba6 {[%clk 0:02:57.5]} 14. Re1 {[%clk
0:02:47.9]} 14... Nd3 {[%clk 0:02:57.4]} 15. Re3 {[%clk 0:02:47.2]} 15... Nxc1
{[%clk 0:02:57.7]} 16. Qxc1 {[%clk 0:02:49.1]} 16... Rc8 {[%clk 0:02:58.3]} 17.
Bd3 {[%clk 0:02:45.4]} 17... Bxd3 {[%clk 0:02:54.4]} 18. Rxd3 {[%clk 0:02:47.2]}
18... Nb8 {[%clk 0:02:52.4]} 19. Qd1 {[%clk 0:02:45.3]} 19... Nc6 {[%clk
0:02:51.6]} 20. Nb5 {[%clk 0:02:46.5]} 20... Nb4 {[%clk 0:02:51.9]} 21. Rc3
{[%clk 0:02:48]} 21... Rxc3 {[%clk 0:02:52.4]} 22. bxc3 {[%clk 0:02:49.9]} 22...
Na6 {[%clk 0:02:52.5]} 23. Qb3 {[%clk 0:02:45.5]} 23... Qd7 {[%clk 0:02:47.7]}
24. Rb1 {[%clk 0:02:41.8]} 24... Qc6 {[%clk 0:02:49]} 25. Na7 {[%clk 0:02:39.3]}
25... Qc7 {[%clk 0:02:38.4]} 26. Qxb6 {[%clk 0:02:33.9]} 26... Qxc3 {[%clk
0:02:39.6]} 27. Qxa6 {[%clk 0:02:34.9]} 27... Qxd2 {[%clk 0:02:40.9]} 28. Nc6
{[%clk 0:02:35.5]} 28... Bb4 {[%clk 0:02:27.5]} 29. Qb5 {[%clk 0:02:32.2]} 29...
Bc3 {[%clk 0:02:10.8]} 30. Qc5 {[%clk 0:01:41.3]} 30... g6 {[%clk 0:02:10.5]}
31. h3 {[%clk 0:01:28.3]} 31... Kg7 {[%clk 0:02:11.5]} 32. g3 {[%clk 0:00:59.1]}
32... Rc8 {[%clk 0:02:06.5]} 33. Qb6 {[%clk 0:00:53.9]} 33... Qc2 {[%clk
0:01:55.1]} 34. Rf1 {[%clk 0:00:45.1]} 34... Bd2 {[%clk 0:01:50.6]} 35. Nxa5
{[%clk 0:00:43.2]} 35... Qxa4 {[%clk 0:01:47.1]} 36. Nb3 {[%clk 0:00:34.9]}
36... Bb4 {[%clk 0:01:45.3]} 37. Nc1 {[%clk 0:00:22.2]} 37... Rc4 {[%clk
0:01:40.1]} 38. Nd3 {[%clk 0:00:21.3]} 38... Bc3 {[%clk 0:01:22]} 39. Qd8 {[%clk
0:00:21]} 39... Qa5 {[%clk 0:01:02.9]} 40. Qf6+ {[%clk 0:00:19.7]} 40... Kg8
{[%clk 0:01:03.8]} 41. Rb1 {[%clk 0:00:20.7]} 41... Rc8 {[%clk 0:01:01.3]} 42.
Nc5 {[%clk 0:00:20.2]} 42... Qd8 {[%clk 0:00:50.9]} 43. Qf4 {[%clk 0:00:11.9]}
43... Rb8 {[%clk 0:00:25]} 44. Rb7 {[%clk 0:00:09.6]} 44... Rxb7 {[%clk
0:00:16]} 45. Nxb7 {[%clk 0:00:11.4]} 45... Qe7 {[%clk 0:00:17.6]} 46. Nd6
{[%clk 0:00:12.4]} 46... Bb4 {[%clk 0:00:18.7]} 47. Nb5 {[%clk 0:00:08.7]} 47...
Qb7 {[%clk 0:00:15.3]} 48. Nd6 {[%clk 0:00:08.3]} 48... Qc7 {[%clk 0:00:14]} 49.
Kg2 {[%clk 0:00:08]} 49... Qc2 {[%clk 0:00:06]} 50. Ne8 {[%clk 0:00:07.9]} 50...
Kf8 {[%clk 0:00:06.7]} 51. Nf6 {[%clk 0:00:08.1]} 51... Qf5 {[%clk 0:00:07.7]}
52. Nxh7+ {[%clk 0:00:07.8]} 52... Kg7 {[%clk 0:00:08.9]} 53. Nf6 {[%clk
0:00:07.8]} 53... Qxf4 {[%clk 0:00:09.8]} 54. gxf4 {[%clk 0:00:09.7]} 54... Bc3
{[%clk 0:00:11.5]} 55. Ne8+ {[%clk 0:00:09.7]} 55... Kf8 {[%clk 0:00:12.3]} 56.
Nd6 {[%clk 0:00:11]} 56... Bxd4 {[%clk 0:00:13.8]} 57. Kf3 {[%clk 0:00:12.9]}
57... Kg7 {[%clk 0:00:14.4]} 58. Nb5 {[%clk 0:00:14.1]} 58... Bc5 {[%clk
0:00:15.9]} 59. Nc3 {[%clk 0:00:14.9]} 59... Be7 {[%clk 0:00:16.4]} 60. Ne2
{[%clk 0:00:15.7]} 60... Kh6 {[%clk 0:00:18]} 61. Kg4 {[%clk 0:00:15.2]} 61...
Bc5 {[%clk 0:00:18.7]} 62. f3 {[%clk 0:00:15.8]} 62... Bf2 {[%clk 0:00:20.3]}
63. Nc1 {[%clk 0:00:12.2]} 63... d4 {[%clk 0:00:21.5]} 64. Nd3 {[%clk
0:00:13.7]} 64... Be3 {[%clk 0:00:22.9]} 65. Nc5 {[%clk 0:00:15.2]} 65... Kg7
{[%clk 0:00:23.7]} 66. Nd3 {[%clk 0:00:16.6]} 66... Kf8 {[%clk 0:00:25.2]} 67.
h4 {[%clk 0:00:15.1]} 67... Ke7 {[%clk 0:00:26.4]} 68. h5 {[%clk 0:00:16.5]}
68... gxh5+ {[%clk 0:00:27.9]} 69. Kxh5 {[%clk 0:00:18.3]} 69... Kd7 {[%clk
0:00:29.1]} 70. Kg5 {[%clk 0:00:19.8]} 70... Bd2 {[%clk 0:00:27.8]} 71. Kf6
{[%clk 0:00:19.9]} 71... Ke8 {[%clk 0:00:29.2]} 72. Nc5 {[%clk 0:00:20.6]} 72...
Bxf4 {[%clk 0:00:28.2]} 73. Nd3 {[%clk 0:00:15.9]} 73... Bg3 {[%clk 0:00:29.4]}
74. Nc5 {[%clk 0:00:16.2]} 74... Bh4+ {[%clk 0:00:30.6]} 75. Kg7 {[%clk
0:00:16.4]} 75... Be7 {[%clk 0:00:31.6]} 76. Nd3 {[%clk 0:00:17.8]} 76... Bf8+
{[%clk 0:00:30]} 77. Kf6 {[%clk 0:00:18.3]} 77... Bh6 {[%clk 0:00:31.5]} 78. f4
{[%clk 0:00:18]} 78... Kf8 {[%clk 0:00:31.5]} 79. f5 {[%clk 0:00:16.8]} 79...
exf5 {[%clk 0:00:33]} 80. Kxf5 {[%clk 0:00:18.7]} 80... Ke7 {[%clk 0:00:34.4]}
81. Ke4 {[%clk 0:00:20.2]} 81... Be3 {[%clk 0:00:34.7]} 82. Nb4 {[%clk
0:00:20.8]} 82... Ke6 {[%clk 0:00:35.2]} 83. Nd5 {[%clk 0:00:21.4]} 83... Bg1
{[%clk 0:00:35.6]} 84. Nf4+ {[%clk 0:00:21.5]} 84... Ke7 {[%clk 0:00:36.9]} 85.
Nd3 {[%clk 0:00:23.1]} 85... Kd7 {[%clk 0:00:37.3]} 86. Nc5+ {[%clk 0:00:22.8]}
86... Kc6 {[%clk 0:00:38.4]} 87. Nd3 {[%clk 0:00:23.4]} 87... Kb5 {[%clk
0:00:39.2]} 88. Nf4 {[%clk 0:00:24.4]} 88... Kc4 {[%clk 0:00:37.7]} 89. Nd3
{[%clk 0:00:19.9]} 89... Bh2 {[%clk 0:00:38]} 90. Nf2 {[%clk 0:00:19.4]} 90...
Kc3 {[%clk 0:00:36.6]} 91. Nd3 {[%clk 0:00:17.2]} 91... Bg1 {[%clk 0:00:37.4]}
92. Ne1 {[%clk 0:00:17.1]} 92... Bf2 {[%clk 0:00:36.7]} 93. Nd3 {[%clk
0:00:16.8]} 93... Be3 {[%clk 0:00:38.1]} 94. Ne1 {[%clk 0:00:17.3]} 94... Kd2
{[%clk 0:00:39.5]} 95. Nd3 {[%clk 0:00:18.3]} 95... Ke2 {[%clk 0:00:40.9]} 96.
Nc5 {[%clk 0:00:16]} 96... Bf2 {[%clk 0:00:36.6]} 97. Nb3 {[%clk 0:00:12.3]}
97... d3 {[%clk 0:00:36.2]} 98. Nc1+ {[%clk 0:00:13.5]} 98... Kd2 {[%clk
0:00:37.6]} 99. Nxd3 {[%clk 0:00:15.4]} 99... Bc5 {[%clk 0:00:39.2]} 100. Nxc5
{[%clk 0:00:16.2]} 100... Kc3 {[%clk 0:00:40.8]} 101. Kf5 {[%clk 0:00:16.9]}
101... Kc4 {[%clk 0:00:41.9]} 102. Kf6 {[%clk 0:00:16.9]} 1-0

[Event "*** Titled Tuesday Blitz"]
[Site "Chess.com"]
[Date "2019.04.02"]
[Round "3"]
[White "Gr3egor"]
[Black "denizozen"]
[Result "1/2-1/2"]
[WhiteElo "2529"]
[BlackElo "2691"]
[TimeControl "180+2"]
[EndTime "14:29:26 PDT"]
[Termination "Game drawn by agreement"]

1. d4 {[%clk 0:03:01.9]} 1... Nf6 {[%clk 0:03:00.8]} 2. c4 {[%clk 0:03:02.9]}
2... a6 {[%clk 0:03:00.8]} 3. Nc3 {[%clk 0:03:02.6]} 3... e6 {[%clk 0:03:01.5]}
4. e4 {[%clk 0:03:03.1]} 4... d5 {[%clk 0:03:01.6]} 5. e5 {[%clk 0:03:02.2]}
5... Ng8 {[%clk 0:03:01.5]} 6. Nf3 {[%clk 0:03:02.6]} 6... c6 {[%clk 0:03:01.8]}
7. Bd3 {[%clk 0:02:55.3]} 7... f5 {[%clk 0:03:02.3]} 8. exf6 {[%clk 0:02:55.1]}
8... Nxf6 {[%clk 0:03:02.6]} 9. O-O {[%clk 0:02:56.2]} 9... Bd6 {[%clk
0:03:03.3]} 10. Ne5 {[%clk 0:02:55.3]} 10... O-O {[%clk 0:02:56.6]} 11. Bg5
{[%clk 0:02:55.4]} 11... c5 {[%clk 0:02:44.9]} 12. Bc2 {[%clk 0:02:39.1]} 12...
cxd4 {[%clk 0:02:40.9]} 13. Qxd4 {[%clk 0:02:41]} 1/2-1/2

[Event "*** Titled Tuesday Blitz"]
[Site "Chess.com"]
[Date "2019.04.02"]
[Round "3"]
[White "albi1999"]
[Black "krzyzan94"]
[Result "1-0"]
[WhiteElo "2637"]
[BlackElo "2539"]
[TimeControl "180+2"]
[EndTime "14:30:39 PDT"]
[Termination "albi1999 won by resignation"]

1. d4 {[%clk 0:03:01.6]} 1... c5 {[%clk 0:03:00.5]} 2. d5 {[%clk 0:03:02.7]}
2... e5 {[%clk 0:03:01.9]} 3. c4 {[%clk 0:03:02.8]} 3... d6 {[%clk 0:03:03.4]}
4. Nc3 {[%clk 0:03:04.3]} 4... Nf6 {[%clk 0:03:04.2]} 5. e4 {[%clk 0:03:05.4]}
5... Nbd7 {[%clk 0:03:05.7]} 6. g3 {[%clk 0:03:06.4]} 6... a6 {[%clk 0:03:07.1]}
7. a4 {[%clk 0:03:06.7]} 7... h5 {[%clk 0:03:09]} 8. h4 {[%clk 0:02:59.2]} 8...
Be7 {[%clk 0:03:07.1]} 9. Bg2 {[%clk 0:03:00.1]} 9... Nf8 {[%clk 0:03:04.4]} 10.
Nh3 {[%clk 0:02:58.4]} 10... Ng6 {[%clk 0:03:04.7]} 11. Bd2 {[%clk 0:02:52.2]}
11... Bg4 {[%clk 0:03:05.1]} 12. Qb3 {[%clk 0:02:50.5]} 12... Rb8 {[%clk
0:03:04.9]} 13. f3 {[%clk 0:02:50.7]} 13... Bd7 {[%clk 0:03:00.4]} 14. Nf2
{[%clk 0:02:51.8]} 14... Nh7 {[%clk 0:02:44]} 15. Nfd1 {[%clk 0:02:50.4]} 15...
f5 {[%clk 0:02:44.7]} 16. exf5 {[%clk 0:02:49.4]} 16... Bxf5 {[%clk 0:02:46.6]}
17. Ne3 {[%clk 0:02:50]} 17... Bd7 {[%clk 0:02:47.8]} 18. Qc2 {[%clk 0:02:49.5]}
18... Nhf8 {[%clk 0:02:36.4]} 19. Bh3 {[%clk 0:02:48.3]} 19... Bxh3 {[%clk
0:02:36.1]} 20. Rxh3 {[%clk 0:02:50.2]} 20... Bf6 {[%clk 0:02:36.6]} 21. Qf5
{[%clk 0:02:48.9]} 21... Qd7 {[%clk 0:02:37]} 22. Ne4 {[%clk 0:02:48.6]} 22...
Ke7 {[%clk 0:02:31.3]} 23. Qxd7+ {[%clk 0:02:36.3]} 23... Nxd7 {[%clk
0:02:31.9]} 24. Nf5+ {[%clk 0:02:37.9]} 24... Kd8 {[%clk 0:02:31.7]} 25. Nfxd6
{[%clk 0:02:36.7]} 25... Ne7 {[%clk 0:02:30.5]} 26. Nf7+ {[%clk 0:02:37.2]}
26... Kc7 {[%clk 0:02:28.8]} 27. Nxh8 {[%clk 0:02:39.1]} 27... Ra8 {[%clk
0:02:28.7]} 1-0

[Event "*** Titled Tuesday Blitz"]
[Site "Chess.com"]
[Date "2019.04.02"]
[Round "3"]
[White "Slovak_fighter2000"]
[Black "nochewycandy"]
[Result "1-0"]
[WhiteElo "2475"]
[BlackElo "2351"]
[TimeControl "180+2"]
[EndTime "14:31:02 PDT"]
[Termination "Slovak_fighter2000 won by resignation"]

1. d4 {[%clk 0:03:01.6]} 1... Nf6 {[%clk 0:03:00.7]} 2. Bf4 {[%clk 0:03:02.8]}
2... g6 {[%clk 0:02:59.8]} 3. Nc3 {[%clk 0:03:03.9]} 3... d5 {[%clk 0:02:59.6]}
4. e3 {[%clk 0:03:05.5]} 4... Bg7 {[%clk 0:03:00.4]} 5. h4 {[%clk 0:03:07.2]}
5... h6 {[%clk 0:02:58.5]} 6. Nf3 {[%clk 0:03:08]} 6... Bg4 {[%clk 0:02:54.7]}
7. Be2 {[%clk 0:03:09.3]} 7... c6 {[%clk 0:02:52.7]} 8. Ne5 {[%clk 0:03:10.9]}
8... Bxe2 {[%clk 0:02:53.1]} 9. Qxe2 {[%clk 0:03:12.8]} 9... Nbd7 {[%clk
0:02:53.9]} 10. O-O-O {[%clk 0:03:14]} 10... Nxe5 {[%clk 0:02:54.7]} 11. Bxe5
{[%clk 0:03:15.9]} 11... Qa5 {[%clk 0:02:55]} 12. Kb1 {[%clk 0:03:16.1]} 12...
O-O {[%clk 0:02:52.4]} 13. e4 {[%clk 0:03:16.7]} 13... dxe4 {[%clk 0:02:52.9]}
14. Nxe4 {[%clk 0:03:18.6]} 14... Nxe4 {[%clk 0:02:53.8]} 15. Qxe4 {[%clk
0:03:16]} 15... Bxe5 {[%clk 0:02:47.7]} 16. dxe5 {[%clk 0:03:17.9]} 16... Rad8
{[%clk 0:02:47.8]} 17. e6 {[%clk 0:03:18.8]} 17... f5 {[%clk 0:02:44.7]} 18. Qe3
{[%clk 0:03:14.2]} 18... Kh7 {[%clk 0:02:26.8]} 19. Rd7 {[%clk 0:03:12.2]} 19...
Rxd7 {[%clk 0:02:18.7]} 20. exd7 {[%clk 0:03:14.1]} 20... e5 {[%clk 0:02:20.1]}
21. Rd1 {[%clk 0:03:11.3]} 21... Rd8 {[%clk 0:02:18.4]} 22. Qb3 {[%clk
0:03:09.6]} 22... h5 {[%clk 0:01:57]} 23. Qf7+ {[%clk 0:03:10.1]} 23... Kh6
{[%clk 0:01:57.2]} 24. a3 {[%clk 0:03:02]} 24... b5 {[%clk 0:01:45.2]} 25. Rd6
{[%clk 0:03:00.9]} 1-0

[Event "*** Titled Tuesday Blitz"]
[Site "Chess.com"]
[Date "2019.04.02"]
[Round "3"]
[White "Shant_Sargsyan"]
[Black "warmoatmeal"]
[Result "1-0"]
[WhiteElo "2938"]
[BlackElo "1787"]
[TimeControl "180+2"]
[EndTime "14:31:05 PDT"]
[Termination "Shant_Sargsyan won by resignation"]

1. b3 {[%clk 0:03:01.9]} 1... e5 {[%clk 0:03:00.1]} 2. Bb2 {[%clk 0:03:02.4]}
2... Nc6 {[%clk 0:03:00.3]} 3. e3 {[%clk 0:03:03.7]} 3... d5 {[%clk 0:03:00.2]}
4. Bb5 {[%clk 0:03:04.2]} 4... Bd6 {[%clk 0:03:00]} 5. d4 {[%clk 0:03:04.7]}
5... exd4 {[%clk 0:03:00]} 6. Qxd4 {[%clk 0:03:04]} 6... Nf6 {[%clk 0:02:57]} 7.
Nf3 {[%clk 0:03:02.3]} 7... a6 {[%clk 0:02:56.9]} 8. Bxc6+ {[%clk 0:03:03.1]}
8... bxc6 {[%clk 0:02:58.8]} 9. Nbd2 {[%clk 0:03:03.3]} 9... O-O {[%clk
0:02:58.1]} 10. Qh4 {[%clk 0:03:04.8]} 10... Bf5 {[%clk 0:02:54.3]} 11. Bxf6
{[%clk 0:03:04.3]} 11... Qxf6 {[%clk 0:02:56.2]} 12. Qxf6 {[%clk 0:03:05.5]}
12... gxf6 {[%clk 0:02:57]} 13. Nd4 {[%clk 0:03:07.1]} 13... Bd7 {[%clk
0:02:48]} 14. c4 {[%clk 0:03:08.5]} 14... Be5 {[%clk 0:02:45.9]} 15. O-O-O
{[%clk 0:03:05.4]} 15... Bxd4 {[%clk 0:02:45]} 16. exd4 {[%clk 0:03:06]} 16...
Rfe8 {[%clk 0:02:45.8]} 17. Rhe1 {[%clk 0:03:06.5]} 17... Rxe1 {[%clk
0:02:39.7]} 18. Rxe1 {[%clk 0:03:08.4]} 18... Re8 {[%clk 0:02:41.2]} 19. Rxe8+
{[%clk 0:03:10]} 19... Bxe8 {[%clk 0:02:43.1]} 20. Kc2 {[%clk 0:03:10.8]} 20...
Kf8 {[%clk 0:02:43.6]} 21. Kc3 {[%clk 0:03:12.3]} 21... a5 {[%clk 0:02:39.6]}
22. b4 {[%clk 0:03:12.6]} 22... axb4+ {[%clk 0:02:32]} 23. Kxb4 {[%clk
0:03:14.5]} 23... Ke7 {[%clk 0:02:21.2]} 24. Kc5 {[%clk 0:03:15.6]} 24... Ke6
{[%clk 0:02:20.7]} 25. a4 {[%clk 0:03:16.7]} 25... dxc4 {[%clk 0:02:21.4]} 26.
Nxc4 {[%clk 0:03:18.6]} 26... Bd7 {[%clk 0:02:05.3]} 27. a5 {[%clk 0:03:20.1]}
27... Bc8 {[%clk 0:02:06.5]} 28. Kxc6 {[%clk 0:03:22]} 28... Ba6 {[%clk
0:02:06.6]} 29. Ne3 {[%clk 0:03:22.3]} 29... f5 {[%clk 0:02:06.6]} 30. d5+
{[%clk 0:03:23.7]} 30... Ke5 {[%clk 0:02:07.6]} 31. Kxc7 {[%clk 0:03:25.6]}
31... f4 {[%clk 0:02:08.1]} 32. d6 {[%clk 0:03:27.5]} 32... fxe3 {[%clk
0:02:08.3]} 33. fxe3 {[%clk 0:03:29.4]} 1-0